fUSD/lending_fUSD_20250522
["ID","MTS","AMOUNT","RATE_DAILY","PERIOD"]
[361997174,1747929043925,-420.0,0.00032876,5]
[361997177,1747929043934,-420.0,0.00032876,5]
[361997180,1747929043944,-420.0,0.00032876,5]
[361997182,1747929043953,-420.0,0.00032876,5]
[361997184,1747929043962,-580.44,0.00032876,5]
[361997186,1747929043971,-420.0,0.00032876,5]
[361997188,1747929043980,-662.9,0.00032876,5]
[361997190,1747929043990,-408.59293716,0.00032876,5]
[361997192,1747929043999,-420.0,0.00032876,5]
[361997194,1747929044009,-420.0,0.00032876,5]
[361997196,1747929044018,-443.41,0.00032876,5]
[361997198,1747929044029,-420.0,0.00032876,5]
[361997200,1747929044039,-420.0,0.00032876,5]
[361997202,1747929044049,-1625.27,0.00032876,5]
[361997204,1747929044058,-420.0,0.00032876,5]
[361997206,1747929044068,-1092.42,0.00032876,5]
[361997208,1747929044078,-774.44,0.00032876,5]
[361997210,1747929044087,-420.0,0.00032876,5]
[361997212,1747929044096,-420.0,0.00032876,5]
[361997214,1747929044106,-420.0,0.00032876,5]
[361997216,1747929044115,-524.25,0.00032876,5]
[361997218,1747929044127,-714.97,0.00032876,5]
[361997220,1747929044136,-435.37,0.00032876,5]
[361997222,1747929044146,-420.0,0.00032876,5]
[361997224,1747929044155,-420.0,0.00032876,5]
[361997225,1747929044165,-841.44,0.00032876,5]
[361997227,1747929044174,-420.0,0.00032876,5]
[361997229,1747929044183,-1018.53,0.00032876,5]
[361997231,1747929044193,-420.0,0.00032876,5]
[361997233,1747929044203,-945.12,0.00032876,5]
[361997235,1747929044213,-420.0,0.00032876,5]
[361997237,1747929044222,-894.43,0.00032876,5]
[361997239,1747929044231,-960.57,0.00032876,5]
[361997241,1747929044240,-518.12,0.00032876,5]
[361997243,1747929044250,-181.3660146,0.00032876,5]
[361997245,1747929044260,-420.0,0.00032876,5]
[361997247,1747929044271,-420.0,0.00032876,5]
[361997249,1747929044285,-849.55,0.00032876,5]
[361997251,1747929044296,-420.0,0.00032876,5]
[361997253,1747929044306,-485.89257859,0.00032876,5]
[361997255,1747929044316,-420.0,0.00032876,5]
[361997257,1747929044325,-480.52,0.00032876,5]
[361997259,1747929044335,-1095.7,0.00032876,5]
[361997261,1747929044344,-420.0,0.00032876,5]
[361997263,1747929044354,-522.9,0.00032876,5]
[361997265,1747929044363,-420.0,0.00032876,5]
[361997267,1747929044372,-420.0,0.00032876,5]
[361997269,1747929044382,-792.34,0.00032876,5]
[361997271,1747929044391,-420.0,0.00032876,5]
[361997273,1747929044400,-420.0,0.00032876,5]
[361997275,1747929044410,-420.0,0.00032876,5]
[361997277,1747929044419,-432.52,0.00032876,5]
[361997279,1747929044429,-420.0,0.00032876,5]
[361997281,1747929044438,-420.0,0.00032876,5]
[361997283,1747929044447,-420.0,0.00032876,5]
[361997285,1747929044457,-420.0,0.00032876,5]
[361997287,1747929044466,-1102.79,0.00032876,5]
[361997289,1747929044476,-840.41,0.00032876,5]
[361997290,1747929044485,-300.0,0.00032876,5]
[361997292,1747929044495,-1211.76,0.00032876,5]
[361997294,1747929044504,-420.0,0.00032876,5]
[361997296,1747929044513,-596.44,0.00032876,5]
[361997298,1747929044524,-420.0,0.00032876,5]
[361997300,1747929044533,-1654.01,0.00032876,2]
[361997302,1747929044542,-420.0,0.00032876,5]
[361997304,1747929044551,-420.0,0.00032876,5]
[361997306,1747929044560,-420.0,0.00032876,5]
[361997308,1747929044570,-726.75,0.00032876,5]
[361997310,1747929044579,-420.0,0.00032876,5]
[361997312,1747929044588,-598.22,0.00032876,5]
[361997313,1747929044598,-420.0,0.00032876,5]
[361997314,1747929044608,-420.0,0.00032876,5]
[361997315,1747929044617,-2738.86,0.00032876,5]
[361997316,1747929044629,-420.0,0.00032876,5]
[361997317,1747929044639,-1099.77,0.00032876,5]
[361997318,1747929044649,-420.0,0.00032876,5]
[361997319,1747929044659,-420.0,0.00032876,5]
[361997320,1747929044668,-5654.44,0.00032876,2]
[361997321,1747929044678,-420.0,0.00032876,5]
[361997322,1747929044687,-3166.94,0.00032876,5]
[361997323,1747929044696,-596.67,0.00032876,5]
[361997324,1747929044705,-420.0,0.00032876,5]
[361997326,1747929044714,-420.0,0.00032876,5]
[361997328,1747929044724,-420.0,0.00032876,5]
[361997330,1747929044733,-420.0,0.00032876,5]
[361997332,1747929044742,-744.87,0.00032876,5]
[361997334,1747929044752,-420.0,0.00032876,5]
[361997336,1747929044761,-1702.87,0.00032876,5]
[361997338,1747929044771,-923.85,0.00032876,5]
[361997340,1747929044782,-1116.86,0.00032876,5]
[361997342,1747929044792,-420.0,0.00032876,5]
[361997343,1747929044801,-364.75861883,0.00032876,5]
[361997392,1747929045259,-55.24138117,0.00032876,5]
[361997394,1747929045270,-420.0,0.00032876,5]
[361997396,1747929045283,-420.0,0.00032876,5]
[361997398,1747929045293,-472.17,0.00032876,5]
[361997400,1747929045302,-420.0,0.00032876,5]
[361997402,1747929045312,-420.0,0.00032876,5]
[361997404,1747929045322,-297.48182691,0.00032876,5]
[361997406,1747929045332,-420.0,0.00032876,5]
[361997408,1747929045341,-420.0,0.00032876,5]
[361997410,1747929045351,-420.0,0.00032876,5]
[361997412,1747929045360,-464.25,0.00032876,5]
[361997414,1747929045369,-420.0,0.00032876,5]
[361997416,1747929045378,-420.0,0.00032876,5]
[361997418,1747929045387,-674.48,0.00032876,5]
[361997420,1747929045397,-420.0,0.00032876,5]
[361997422,1747929045406,-420.0,0.00032876,5]
[361997424,1747929045416,-798.74,0.00032876,5]
[361997426,1747929045425,-875.51,0.00032876,5]
[361997428,1747929045434,-420.0,0.00032876,5]
[361997430,1747929045443,-729.67,0.00032876,5]
[361997431,1747929045453,-420.0,0.00032876,5]
[361997433,1747929045463,-1647.26,0.00032876,5]
[361997435,1747929045472,-420.0,0.00032876,5]
[361997437,1747929045482,-420.0,0.00032876,5]
[361997439,1747929045491,-420.0,0.00032876,5]
[361997441,1747929045501,-420.0,0.00032876,5]
[361997444,1747929045511,-860.57,0.00032876,5]
[361997446,1747929045520,-768.06,0.00032876,5]
[361997447,1747929045532,-420.0,0.00032876,5]
[361997449,1747929045542,-1017.71,0.00032876,5]
[361997451,1747929045550,-553.18,0.00032876,5]
[361997453,1747929045560,-600.7,0.00032876,5]
[361997455,1747929045570,-485.92,0.00032876,5]
[361997457,1747929045580,-420.0,0.00032876,5]
[361997459,1747929045590,-429.79,0.00032876,5]
[361997461,1747929045599,-420.0,0.00032876,5]
[361997463,1747929045609,-420.0,0.00032876,5]
[361997465,1747929045618,-420.0,0.00032876,5]
[361997467,1747929045628,-420.0,0.00032876,5]
[361997469,1747929045637,-420.0,0.00032876,5]
[361997471,1747929045647,-402.08283436,0.00032876,5]
[361997473,1747929045656,-420.0,0.00032876,5]
[361997475,1747929045665,-429.62,0.00032876,5]
[361997477,1747929045675,-453.31,0.00032877,2]
[361997479,1747929045684,-1159.07,0.00032877,2]
[361997481,1747929045693,-150.36,0.00032877,2]
[361997483,1747929045703,-150.0,0.00032877,2]
[361997485,1747929045712,-453.31,0.00032877,2]
[361997487,1747929045721,-1159.07,0.00032877,2]
[361997489,1747929045730,-150.36,0.00032877,2]
[361997491,1747929045740,-353.4,0.00032877,2]
[361997492,1747929045749,-150.0,0.00032877,2]
[361997494,1747929045758,-1159.07,0.00032877,2]
[361997496,1747929045767,-150.0,0.00032877,2]
[361997498,1747929045776,-170.12,0.00032877,2]
[361997500,1747929045786,-150.36,0.00032877,2]
[361997502,1747929045795,-353.4,0.00032877,2]
[361997504,1747929045806,-1159.07,0.00032877,2]
[361997506,1747929045816,-150.36,0.00032877,2]
[361997508,1747929045825,-353.4,0.00032877,2]
[361997510,1747929045834,-170.12,0.00032877,2]
[361997512,1747929045844,-453.31,0.00032877,2]
[361997514,1747929045855,-49.01516784,0.00032877,2]
[361997517,1747929045867,-100.98483216,0.00032877,2]
[361997519,1747929045877,-170.12,0.00032877,2]
[361997521,1747929045887,-155.7,0.00032877,2]
[361997523,1747929045896,-1159.07,0.00032877,2]
[361997525,1747929045905,-353.4,0.00032877,2]
[361997526,1747929045914,-150.36,0.00032877,2]
[361997529,1747929045924,-453.31,0.00032877,2]
[361997530,1747929045934,-170.12,0.00032877,2]
[361997532,1747929045944,-453.31,0.00032877,2]
[361997533,1747929045953,-450.71,0.00032877,2]
[361997535,1747929045962,-412.87,0.00032877,2]
[361997536,1747929045971,-353.4,0.00032877,2]
[361997538,1747929045980,-453.31,0.00032877,2]
[361997540,1747929045990,-170.12,0.00032877,2]
[361997541,1747929046000,-353.4,0.00032877,2]
[361997543,1747929046009,-1159.07,0.00032877,2]
[361997545,1747929046019,-353.4,0.00032877,2]
[361997546,1747929046029,-339.99,0.00032877,2]
[361997548,1747929046038,-453.31,0.00032877,2]
[361997549,1747929046048,-453.31,0.00032877,2]
[361997551,1747929046057,-353.4,0.00032877,2]
[361997553,1747929046066,-453.31,0.00032877,2]
[361997564,1747929046211,-453.31,0.00032877,2]
[361997566,1747929046222,-353.4,0.00032877,2]
[361997568,1747929046233,-453.31,0.00032877,2]
[361997570,1747929046242,-353.4,0.00032877,2]
[361997571,1747929046251,-453.31,0.00032877,2]
[361997573,1747929046261,-453.31,0.00032877,2]
[361997575,1747929046271,-353.4,0.00032877,2]
[361997576,1747929046281,-375.94326784,0.00032877,2]
[361997578,1747929046294,-77.36673216,0.00032877,2]
[361997579,1747929046304,-353.4,0.00032877,2]
[361997581,1747929046313,-453.31,0.00032877,2]
[361997583,1747929046323,-353.4,0.00032877,2]
[361997584,1747929046332,-453.31,0.00032877,2]
[361997586,1747929046343,-93.31613127,0.00032877,2]
[361997588,1747929046355,-69.51386873,0.00032877,2]
[361997590,1747929046364,-300.33,0.00032877,2]
[361997592,1747929046373,-121.6723028,0.00032951,2]
[361997594,1747929046397,-30.8376972,0.00032951,2]
[361997596,1747929046406,-887.73769133,0.00032959,30]
[361997598,1747929046416,-96.66816599,0.00033,2]
[361997600,1747929046428,-4903.33183401,0.00033,2]
[361997602,1747929046438,-1184.328,0.00033012,34]
[361997603,1747929046447,-7364.21867529,0.00033012,2]
[361997605,1747929046457,-1172.00265817,0.00033012,2]
[361997607,1747929046468,-216.28324406,0.00033038,28]
[361997608,1747929046478,-154.0,0.00033048,2]
[361997610,1747929046487,-5461.326,0.0003305,2]
[361997612,1747929046497,-887.73769133,0.00033096,30]
[361997614,1747929046506,-394.32361406,0.0003313,2]
[361997616,1747929046516,-394.32361406,0.00033137,2]
[361997617,1747929046525,-1971.6180703,0.0003314,2]
[361997619,1747929046536,-1089.04,0.00033147,5]
[361997621,1747929046546,-420.0,0.00033147,5]
[361997623,1747929046556,-4233.37,0.00033147,5]
[361997625,1747929046565,-744.12,0.00033147,5]
[361997626,1747929046575,-3243.23,0.00033147,5]
[361997628,1747929046585,-420.0,0.00033147,5]
[361997630,1747929046595,-570.74,0.00033147,5]
[361997631,1747929046604,-2462.15,0.00033147,5]
[361997633,1747929046613,-6765.39,0.00033147,5]
[361997635,1747929046623,-3265.71589459,0.00033147,5]
[361997742,1747929048097,-150.0,0.0003156,7]
[361997744,1747929048106,-107.06030408,0.00032218,2]
[361997746,1747929048118,-1435.08499182,0.00032218,2]
[361997748,1747929048131,-550.58,0.00032876,5]
[361997750,1747929048141,-14.33500818,0.00032876,5]
[361997752,1747929048152,-405.66499182,0.00032876,5]
[361997754,1747929048163,-420.0,0.00032876,5]
[361997756,1747929048172,-76.42075117,0.00033147,5]
[361997857,1747929049227,-183.08511862,0.00032776,2]
[361997859,1747929049237,-420.0,0.00032876,5]
[361997861,1747929049246,-135.22334052,0.00032876,5]
[361997863,1747929049258,-253.23667343,0.00032876,5]
[361997865,1747929049269,-31.53998605,0.00032876,5]
[361997867,1747929049279,-420.0,0.00032876,5]
[361997869,1747929049289,-256.65113504,0.00032876,5]
[361997871,1747929049298,-2142.89335424,0.00033147,5]
[361997873,1747929049308,-653.5973322,0.00033147,5]
[361997875,1747929049320,-116.1426678,0.00033147,5]
[361997877,1747929049330,-2388.72,0.00033147,5]
[361997879,1747929049339,-2113.8,0.00033147,5]
[361997881,1747929049350,-1043.02,0.00033147,5]
[361997883,1747929049359,-3968.58,0.00033147,5]
[361997885,1747929049369,-524.97,0.00033147,5]
[361997887,1747929049378,-550.12,0.00033147,5]
[361997889,1747929049388,-4625.96,0.00033147,5]
[361997891,1747929049398,-1035.69,0.00033147,5]
[361997893,1747929049409,-420.0,0.00033147,5]
[361997895,1747929049419,-420.0,0.00033147,5]
[361997897,1747929049429,-420.0,0.00033147,5]
[361997899,1747929049439,-912.17,0.00033147,5]
[361997901,1747929049448,-859.29,0.00033147,5]
[361997903,1747929049458,-420.0,0.00033147,5]
[361997905,1747929049468,-962.13,0.00033147,5]
[361997907,1747929049478,-500.0,0.00033148,5]
[361997909,1747929049488,-420.0,0.00033148,5]
[361997911,1747929049498,-505.05,0.00033148,5]
[361997913,1747929049507,-420.0,0.00033148,5]
[361997915,1747929049517,-420.0,0.00033148,5]
[361997917,1747929049527,-420.0,0.00033148,5]
[361997918,1747929049538,-624.02,0.00033148,5]
[361997920,1747929049548,-420.0,0.00033148,5]
[361997922,1747929049557,-420.0,0.00033148,5]
[361997924,1747929049567,-420.0,0.00033148,5]
[361997926,1747929049576,-460.66,0.00033148,5]
[361997928,1747929049585,-529.72,0.00033148,5]
[361997930,1747929049596,-420.0,0.00033148,5]
[361997932,1747929049606,-420.0,0.00033148,5]
[361997933,1747929049615,-420.0,0.00033148,5]
[361997935,1747929049625,-420.0,0.00033148,5]
[361997937,1747929049634,-420.0,0.00033148,5]
[361997939,1747929049644,-420.0,0.00033148,5]
[361997941,1747929049653,-420.0,0.00033148,5]
[361997943,1747929049663,-497.48,0.00033148,5]
[361997944,1747929049673,-420.0,0.00033148,5]
[361997945,1747929049682,-420.0,0.00033148,5]
[361997947,1747929049692,-420.0,0.00033148,5]
[361997948,1747929049701,-420.0,0.00033148,5]
[361997949,1747929049711,-420.0,0.00033148,5]
[361997950,1747929049720,-435.77,0.00033148,5]
[361997951,1747929049730,-420.0,0.00033148,5]
[361997952,1747929049739,-541.16,0.00033148,5]
[361997953,1747929049750,-209.38133221,0.00033148,5]
[361997954,1747929049813,-0.00072103,0.00033148,5]
[361997955,1747929049825,-213.40794676,0.00033148,5]
[361997956,1747929049834,-420.0,0.00033148,5]
[361997957,1747929049843,-420.0,0.00033148,5]
[361997958,1747929049852,-420.0,0.00033148,5]
[361997959,1747929049862,-420.0,0.00033148,5]
[361997960,1747929049871,-420.0,0.00033148,5]
[361997961,1747929049880,-420.0,0.00033148,5]
[361997962,1747929049890,-420.0,0.00033148,5]
[361997963,1747929049899,-420.0,0.00033148,5]
[361997964,1747929049909,-420.0,0.0003315,5]
[361997965,1747929049919,-879.11,0.0003315,5]
[361997966,1747929049928,-162.79683121,0.0003315,5]
[361997967,1747929049938,-426.14,0.0003315,5]
[361997968,1747929049948,-420.0,0.0003315,5]
[361997969,1747929049957,-420.0,0.0003315,5]
[361997970,1747929049967,-420.0,0.0003315,5]
[361997971,1747929049976,-1000.0,0.0003315,5]
[361997972,1747929049985,-471.06,0.0003315,5]
[361997973,1747929049995,-420.0,0.0003315,5]
[361997974,1747929050005,-420.0,0.0003315,5]
[361997975,1747929050015,-420.0,0.0003315,5]
[361997976,1747929050024,-420.0,0.0003315,5]
[361997977,1747929050036,-420.0,0.0003315,5]
[361997978,1747929050045,-420.0,0.0003315,5]
[361997979,1747929050055,-558.18,0.0003315,5]
[361997980,1747929050065,-562.42,0.0003315,5]
[361997981,1747929050074,-773.55,0.0003315,5]
[361997982,1747929050084,-581.24,0.0003315,5]
[361997983,1747929050094,-420.0,0.0003315,5]
[361997984,1747929050103,-420.0,0.0003315,5]
[361997985,1747929050112,-99.78723011,0.0003315,5]
[361997986,1747929050129,-320.21276989,0.0003315,5]
[361997987,1747929050139,-379.78723011,0.0003315,5]
[361997988,1747929050151,-40.21276989,0.0003315,5]
[361997989,1747929050160,-420.0,0.0003315,5]
[361997990,1747929050171,-439.0,0.0003315,5]
[361997991,1747929050181,-420.0,0.0003315,5]
[361997992,1747929050190,-750.51,0.0003315,5]
[361997993,1747929050203,-420.0,0.0003315,5]
[361997994,1747929050214,-420.0,0.0003315,5]
[361997995,1747929050224,-420.0,0.0003315,5]
[361997996,1747929050234,-44.95440722,0.0003315,5]
[361997997,1747929050245,-375.04559278,0.0003315,5]
[361997998,1747929050255,-417.57157121,0.0003315,5]
[361997999,1747929050271,-2.42842879,0.0003315,5]
[361998000,1747929050280,-420.0,0.0003315,5]
[361998001,1747929050290,-312.82656764,0.0003315,5]
[361998002,1747929050300,-457.41,0.0003315,5]
[361998003,1747929050310,-420.0,0.0003315,5]
[361998004,1747929050319,-420.0,0.0003315,5]
[361998005,1747929050328,-845.55,0.0003315,5]
[361998007,1747929050339,-420.0,0.0003315,5]
[361998009,1747929050349,-420.0,0.0003315,5]
[361998011,1747929050358,-420.0,0.0003315,5]
[361998013,1747929050367,-420.0,0.0003315,5]
[361998015,1747929050377,-602.18,0.0003315,5]
[361998017,1747929050387,-740.88,0.0003315,5]
[361998019,1747929050396,-420.0,0.0003315,5]
[361998021,1747929050406,-420.0,0.0003315,5]
[361998023,1747929050415,-420.0,0.0003315,5]
[361998024,1747929050425,-715.81,0.0003315,5]
[361998025,1747929050435,-420.0,0.0003315,5]
[361998027,1747929050444,-420.0,0.0003315,5]
[361998029,1747929050454,-447.44,0.0003315,5]
[361998031,1747929050463,-420.0,0.0003315,5]
[361998033,1747929050473,-420.0,0.0003315,5]
[361998035,1747929050482,-420.0,0.0003315,5]
[361998037,1747929050492,-400.16874646,0.0003315,5]
[361998039,1747929050501,-496.06,0.0003315,5]
[361998041,1747929050511,-543.51,0.0003315,5]
[361998043,1747929050520,-420.0,0.0003315,5]
[361998045,1747929050530,-474.55,0.0003315,5]
[361998047,1747929050540,-420.0,0.0003315,5]
[361998049,1747929050549,-420.0,0.0003315,5]
[361998051,1747929050558,-420.0,0.0003315,5]
[361998053,1747929050568,-509.75,0.0003315,5]
[361998054,1747929050577,-420.0,0.0003315,5]
[361998056,1747929050586,-420.0,0.0003315,5]
[361998058,1747929050596,-420.0,0.0003315,5]
[361998060,1747929050605,-420.0,0.0003315,5]
[361998062,1747929050615,-429.45,0.0003315,5]
[361998064,1747929050624,-480.48,0.0003315,5]
[361998066,1747929050633,-420.0,0.0003315,5]
[361998068,1747929050643,-420.0,0.0003315,5]
[361998070,1747929050653,-420.0,0.0003315,5]
[361998072,1747929050663,-469.18185393,0.0003315,5]
[361998074,1747929050672,-420.0,0.0003315,5]
[361998076,1747929050682,-420.0,0.0003315,5]
[361998078,1747929050692,-420.0,0.0003315,5]
[361998080,1747929050701,-420.0,0.0003315,5]
[361998082,1747929050711,-420.0,0.0003315,5]
[361998084,1747929050720,-683.41,0.0003315,5]
[361998086,1747929050729,-420.0,0.0003315,5]
[361998088,1747929050739,-560.14,0.0003315,5]
[361998090,1747929050748,-420.0,0.0003315,5]
[361998091,1747929050757,-691.02,0.0003315,5]
[361998093,1747929050766,-1188.0,0.0003315,7]
[361998095,1747929050776,-454.25,0.0003315,5]
[361998097,1747929050787,-1188.0,0.0003315,7]
[361998099,1747929050796,-1188.0,0.0003315,7]
[361998101,1747929050806,-1188.0,0.0003315,7]
[361998103,1747929050816,-1188.0,0.0003315,7]
[361998105,1747929050825,-1188.0,0.0003315,7]
[361998107,1747929050834,-543.2,0.0003315,5]
[361998109,1747929050843,-1056.26181455,0.0003315,7]
[361998110,1747929050852,-420.0,0.0003315,5]
[361998112,1747929050862,-469.82,0.0003315,5]
[361998114,1747929050872,-420.0,0.0003315,5]
[361998116,1747929050882,-715.96,0.0003315,5]
[361998117,1747929050891,-171.35582353,0.0003315,5]
[361998122,1747929079835,10000.0,0.000274,120]
[361998123,1747929100543,10000.0,0.000274,120]
[361998124,1747929267443,250.0,0.00015,2]
[361998125,1747929268517,300.0,0.00017,2]
[361998126,1747929269591,350.0,0.00019,2]
[361998127,1747929271007,25000.0,0.000274,120]
[361998129,1747929285711,360.92,0.00013699,2]
[361998130,1747929433401,575.0,0.0002,10]
[361998137,1747929669353,216.05718665,0.00019,2]
[361998139,1747929740208,10000.0,0.000274,120]
[361998140,1747929773640,624.90825,0.000274,120]
[361998142,1747929938122,-299.18770839,0.00020187,2]
[361998143,1747929946093,-61.73229161,0.00020187,2]
[361998144,1747929946116,-500.0,0.00020187,2]
[361998145,1747929946138,-400.0,0.00021,2]
[361998146,1747929946160,-36.27879656,0.00023,2]
[361998150,1747930036342,10000.0,0.000274,120]
[361998151,1747930145086,-413.72120344,0.00023,2]
[361998152,1747930145106,-216.05718664,0.00023,2]
[361998153,1747930145135,-26.41797888,0.00025,2]
[361998154,1747930149102,-473.58202112,0.00025,2]
[361998155,1747930232447,-360.92,0.00026676,2]
[361998156,1747930232458,-550.0,0.00027,2]
[361998157,1747930232468,-500.0,0.00028849,2]
[361998158,1747930232478,-51.83743883,0.00029,2]
[361998159,1747930232537,-500.0,0.00029,2]
[361998160,1747930232548,-48.16256117,0.00029,2]
[361998161,1747930232559,-770.53,0.00029541,2]
[361998162,1747930232569,-500.0,0.00029644,2]
[361998163,1747930232579,-152.51,0.00030987,2]
[361998164,1747930232589,-650.0,0.00031,2]
[361998165,1747930232599,-207.4,0.00031063,2]
[361998166,1747930232609,-1000.0,0.00031081,2]
[361998167,1747930232619,-294.89,0.00031115,2]
[361998168,1747930232630,-177.97,0.00031123,120]
[361998169,1747930232639,-269.72012006,0.00031204,2]
[361998170,1747930232651,-155.10987994,0.00031204,2]
[361998171,1747930232661,-220.98,0.00031219,2]
[361998172,1747930232670,-250.0,0.00031261,2]
[361998173,1747930232680,-162.28,0.00031474,2]
[361998174,1747930232689,-384.0,0.00031478,3]
[361998175,1747930232700,-324.11002289,0.00031479,2]
[361998203,1747930238371,-1594.65997711,0.00031479,2]
[361998204,1747930238381,-8365.0,0.000315,5]
[361998205,1747930238391,-500.0,0.000315,2]
[361998206,1747930238400,-400.0,0.00031716,2]
[361998207,1747930238409,-321.96854498,0.00031717,2]
[361998208,1747930238418,-200.0,0.00031737,2]
[361998209,1747930238428,-770.53,0.00031804,2]
[361998210,1747930238437,-1199.20597015,0.00031823,2]
[361998211,1747930238447,-668.65185757,0.00031823,2]
[361998212,1747930238458,-300.0,0.00031823,2]
[361998213,1747930238467,-300.0,0.00031823,2]
[361998214,1747930238477,-400.0,0.00031823,2]
[361998215,1747930238487,-23900.0,0.00031842,2]
[361998216,1747930238496,-200.83444099,0.000319,25]
[361998217,1747930238505,-25000.0,0.00032,90]
[361998218,1747930238515,-151.75,0.00032,2]
[361998219,1747930238529,-162.83,0.00032055,2]
[361998220,1747930238538,-162.83,0.00032055,2]
[361998221,1747930238548,-162.83,0.00032055,2]
[361998222,1747930238557,-162.83,0.00032078,2]
[361998223,1747930238567,-183.31,0.00032131,2]
[361998224,1747930238576,-154.0,0.0003226,2]
[361998225,1747930238586,-242.79,0.00032296,120]
[361998226,1747930238595,-200.83444091,0.00032307,26]
[361998227,1747930238606,-325.56,0.00032378,2]
[361998228,1747930238615,-152.51,0.00032417,2]
[361998229,1747930238625,-215.0738,0.00032432,2]
[361998230,1747930238634,-300.0,0.00032449,2]
[361998231,1747930238644,-250.0,0.00032492,2]
[361998232,1747930238654,-299.857084,0.00032687,4]
[361998233,1747930238663,-300.0,0.000327,11]
[361998234,1747930238672,-200.83444091,0.00032715,27]
[361998235,1747930238682,-411.25,0.00032776,2]
[361998236,1747930238693,-861.8076,0.00032776,2]
[361998237,1747930238704,-500.0,0.00032776,2]
[361998238,1747930238714,-2500.0,0.00032776,2]
[361998239,1747930238723,-937.60212659,0.00032776,2]
[361998240,1747930238732,-473.02237231,0.00032776,15]
[361998242,1747930238741,-183.08511861,0.00032776,2]
[361998244,1747930238751,-600.0,0.000328,11]
[361998246,1747930238761,-2959.55189,0.0003282,2]
[361998247,1747930238770,-470.69,0.00032866,2]
[361998249,1747930238779,-500.0,0.00032873,5]
[361998251,1747930238789,-500.0,0.00032873,5]
[361998253,1747930238799,-500.0,0.00032873,5]
[361998255,1747930238808,-500.0,0.00032873,5]
[361998257,1747930238818,-500.0,0.00032875,2]
[361998259,1747930238827,-435.05979446,0.00032875,2]
[361998261,1747930238836,-420.0,0.00032876,5]
[361998263,1747930238846,-469.37,0.00032876,5]
[361998265,1747930238855,-420.0,0.00032876,5]
[361998267,1747930238865,-420.0,0.00032876,5]
[361998269,1747930238875,-420.0,0.00032876,5]
[361998271,1747930238884,-420.0,0.00032876,5]
[361998273,1747930238894,-559.56,0.00032876,5]
[361998275,1747930238903,-420.0,0.00032876,5]
[361998277,1747930238913,-420.0,0.00032876,5]
[361998279,1747930238922,-618.64,0.00032876,5]
[361998281,1747930238931,-602.51,0.00032876,5]
[361998283,1747930238940,-463.86,0.00032876,5]
[361998285,1747930238952,-420.0,0.00032876,5]
[361998287,1747930238961,-420.0,0.00032876,5]
[361998289,1747930238972,-420.0,0.00032876,5]
[361998291,1747930238981,-420.0,0.00032876,5]
[361998293,1747930238990,-444.68,0.00032876,5]
[361998295,1747930239000,-420.0,0.00032876,5]
[361998297,1747930239012,-420.0,0.00032876,5]